fUSD/lending_fUSD_20250428
["ID","MTS","AMOUNT","RATE_DAILY","PERIOD"]
[359246769,1745866256261,-158.633436,0.00027397,7]
[359246770,1745866256271,-300.0,0.00027397,2]
[359246771,1745866256283,-499.46,0.00027397,2]
[359246772,1745866256294,-8775.44,0.00027397,2]
[359246773,1745866256304,-150.0,0.00027397,5]
[359246774,1745866256314,-500.0,0.00027397,5]
[359246775,1745866256325,-650.0,0.000274,2]
[359246776,1745866256335,-500.0,0.000274,2]
[359246777,1745866256344,-1200.0,0.000274,2]
[359246778,1745866256354,-500.0,0.00027424,2]
[359246779,1745866256365,-700.0,0.00027425,10]
[359246780,1745866256375,-700.0,0.00027425,10]
[359246781,1745866256385,-700.0,0.00027425,10]
[359246782,1745866256395,-700.0,0.00027425,10]
[359246783,1745866256405,-700.0,0.00027425,10]
[359246784,1745866256414,-500.0,0.00027452,2]
[359246785,1745866256424,-500.0,0.00027479,2]
[359246786,1745866256433,-193.89747879,0.000275,2]
[359246787,1745866256443,-500.0,0.00027507,2]
[359246788,1745866256453,-500.0,0.00027534,2]
[359246789,1745866256462,-843.0,0.00027547,14]
[359246790,1745866256472,-500.0,0.00027561,2]
[359246791,1745866256481,-500.0,0.00027589,2]
[359246792,1745866256491,-859.46269958,0.00027608,2]
[359246793,1745866256501,-500.0,0.00027616,2]
[359246794,1745866256510,-500.0,0.00027644,2]
[359246795,1745866256520,-500.0,0.00027671,2]
[359246796,1745866256531,-500.0,0.00027698,2]
[359246797,1745866256541,-168.03201229,0.00027726,2]
[359246798,1745866256552,-152.0,0.00027732,8]
[359246799,1745866256562,-391.0,0.0002783,15]
[359246800,1745866256572,-500.0,0.00027945,5]
[359246801,1745866256581,-1307.0964753,0.00027969,7]
[359246802,1745866256591,-1152.0,0.00027986,2]
[359246803,1745866256601,-276.73,0.00028,2]
[359246804,1745866256611,-19496.99844143,0.00028,2]
[359246834,1745866302602,1000.0,0.00038356,30]
[359246835,1745866317621,-201.73429737,0.00019985,2]
[359246836,1745866317642,-475.05926938,0.00019985,2]
[359246837,1745866317670,-605.72333983,0.00019985,2]
[359246838,1745866317691,-151.0,0.0002,2]
[359246839,1745866317711,-151.0,0.0002,2]
[359246840,1745866317732,-151.0,0.0002,2]
[359246841,1745866317753,-151.0,0.0002,2]
[359246842,1745866325657,113.48309342,0.00019111,2]
[359246843,1745866325681,43.00690658,0.00019111,2]
[359246844,1745866328105,207.4,0.00019953,2]
[359246845,1745866329490,668.65185757,0.00019954,2]
[359246846,1745866346735,500.0,0.00019999,2]
[359246847,1745866346778,188.21720115,0.00019999,2]
[359246848,1745866386948,392.7240347,0.00019111,2]
[359246849,1745866386970,107.2759653,0.00019111,2]
[359246850,1745866396238,528.052937,0.00037899,120]
[359246851,1745866406862,523.038768,0.000383,35]
[359246852,1745866603792,1000.0,0.00019111,2]
[359246853,1745866628045,207.4,0.00019953,2]
[359246854,1745866630322,668.65185757,0.00019954,2]
[359246855,1745866773007,421.0,0.00034521,30]
[359246856,1745866773346,421.0,0.00036247,30]
[359246857,1745866773639,421.0,0.00034233,30]
[359246858,1745866787269,1191.47,0.00038356,120]
[359246859,1745866813668,250.0,0.00019111,7]
[359246860,1745866836036,294.57925,0.00028,41]
[359246861,1745866839249,300.0,0.00038356,30]
[359246862,1745866867279,152.08339995,0.00038356,30]
[359246863,1745866926251,2000.0,0.00019111,2]
[359246864,1745866926277,792.58,0.00019111,2]
[359246865,1745867062651,844.80457818,0.00038356,30]
[359246866,1745867114416,666.34,0.00019111,2]
[359246867,1745867159301,250.0,0.00017,2]
[359246868,1745867160395,291.08,0.00019,2]
[359246869,1745867160418,8.92,0.00019,2]
[359246870,1745867170076,500.0,0.00038356,120]
[359246871,1745867372398,448.0,0.00036,30]
[359246872,1745867372683,448.0,0.0003589,30]
[359246873,1745867372997,448.0,0.00036164,30]
[359246874,1745867373354,448.0,0.00036438,30]
[359246875,1745867373684,448.0,0.00036712,30]
[359246876,1745867373995,448.0,0.00037397,30]
[359246881,1745867432013,-165.251549,0.00019962,2]
[359246882,1745867432023,-500.0,0.00020082,2]
[359246883,1745867432032,-250.0,0.00020088,2]
[359246884,1745867432041,-200.0,0.00020107,2]
[359246885,1745867432052,-34.02174712,0.0002012,2]
[359246886,1745867432171,-215.97825288,0.0002012,2]
[359246887,1745867432182,-200.0,0.00020131,2]
[359246888,1745867432192,-207.4,0.00020266,2]
[359246889,1745867432201,-668.65185757,0.00020266,2]
[359246890,1745867432212,-200.0,0.00020423,2]
[359246891,1745867432221,-300.0,0.0002048,2]
[359246892,1745867432232,-2211.06934823,0.00020751,2]
[359246893,1745867432241,-350.0,0.00021,2]
[359246894,1745867432251,-299.99,0.00021054,7]
[359246895,1745867432261,-171.72,0.00021054,2]
[359246906,1745867432499,-150.99,0.00021054,2]
[359246907,1745867432516,-151.0,0.00021068,2]
[359246908,1745867432526,-151.0,0.00021086,2]
[359246909,1745867432535,-151.0,0.00021099,2]
[359246910,1745867432546,-151.0,0.00021111,2]
[359246911,1745867432557,-151.0,0.00021119,2]
[359246912,1745867432567,-300.0,0.00021309,2]
[359246913,1745867432576,-300.0,0.0002131,2]
[359246914,1745867432585,-1200.0,0.0002131,2]
[359246915,1745867432595,-921.389918,0.00021312,2]
[359246916,1745867432603,-921.389918,0.00021417,2]
[359246917,1745867432612,-1000.0,0.00021499,2]
[359246918,1745867432622,-11669.05872812,0.00021559,2]
[359246919,1745867432631,-215.0738,0.00021635,2]
[359246920,1745867432641,-500.0,0.00021825,2]
[359246921,1745867432650,-300.0,0.0002185,2]
[359246922,1745867432660,-958.53741522,0.000219,3]
[359246923,1745867432669,-251.74,0.00021917,2]
[359246924,1745867432679,-683.13177428,0.00021948,2]
[359246925,1745867432688,-303.69,0.00022035,2]
[359246926,1745867432698,-1617.99838614,0.00022061,2]
[359246927,1745867432708,-301.34,0.00022082,2]
[359246928,1745867432717,-304.72,0.00022082,2]
[359246929,1745867432726,-305.12,0.00022082,2]
[359246930,1745867432736,-303.99,0.00022082,2]
[359246931,1745867432745,-303.46,0.00022082,2]
[359246932,1745867432755,-300.26,0.00022082,2]
[359246933,1745867432764,-300.12,0.00022083,2]
[359246934,1745867432774,-300.42,0.00022083,2]
[359246935,1745867432783,-302.05,0.00022083,2]
[359246936,1745867432793,-305.49,0.00022083,2]
[359246937,1745867432804,-303.56,0.00022083,2]
[359246938,1745867432814,-303.32,0.00022083,2]
[359246939,1745867432823,-302.64,0.00022083,2]
[359246940,1745867432833,-304.54,0.00022083,2]
[359246941,1745867432842,-300.29,0.00022083,2]
[359246942,1745867432851,-300.38,0.00022083,2]
[359246943,1745867432861,-305.91,0.00022083,2]
[359246944,1745867432870,-303.87,0.00022083,2]
[359246945,1745867432879,-305.58,0.00022083,2]
[359246946,1745867432888,-301.7,0.00022083,2]
[359246947,1745867432898,-304.02,0.00022083,2]
[359246948,1745867432907,-301.14,0.00022083,2]
[359246949,1745867432916,-301.66,0.00022083,2]
[359246950,1745867432925,-303.87,0.00022083,2]
[359246951,1745867432935,-304.72,0.00022083,2]
[359246952,1745867432944,-301.34,0.00022084,2]
[359246953,1745867432954,-303.76,0.00022084,2]
[359246954,1745867432963,-301.2,0.00022084,2]
[359246955,1745867432972,-305.11,0.00022085,2]
[359246956,1745867432981,-302.88,0.00022085,2]
[359246957,1745867432990,-305.23,0.00022085,2]
[359246958,1745867433000,-300.62,0.00022085,2]
[359246959,1745867433010,-305.83,0.00022085,2]
[359246960,1745867433019,-300.49,0.00022085,2]
[359246961,1745867433028,-305.02,0.00022085,2]
[359246962,1745867433038,-302.94,0.00022085,2]
[359246963,1745867433048,-303.56,0.00022085,2]
[359246964,1745867433059,-305.3,0.00022085,2]
[359246965,1745867433069,-301.46,0.00022085,2]
[359246966,1745867433078,-301.25,0.00022085,2]
[359246967,1745867433088,-302.05,0.00022085,2]
[359246968,1745867433098,-201.73429737,0.00022086,2]
[359246969,1745867433107,-475.05926938,0.00022086,2]
[359246970,1745867433117,-605.72333983,0.00022086,2]
[359246971,1745867433127,-303.99,0.00022087,2]
[359246972,1745867433137,-300.58,0.00022087,2]
[359246973,1745867433147,-301.67,0.00022087,2]
[359246974,1745867433156,-304.5,0.00022087,2]
[359246975,1745867433166,-302.9,0.00022087,2]
[359246976,1745867433175,-302.22,0.00022087,2]
[359246977,1745867433185,-305.52,0.00022087,2]
[359246978,1745867433194,-304.17,0.00022087,2]
[359246979,1745867433203,-500.0,0.00022087,2]
[359246980,1745867433212,-500.0,0.00022087,2]
[359246981,1745867433222,-500.0,0.00022087,2]
[359246982,1745867433231,-500.0,0.00022087,2]
[359246983,1745867433241,-150.0,0.00022087,2]
[359246984,1745867433250,-500.0,0.00022087,2]
[359246985,1745867433260,-150.0,0.00022087,2]
[359246986,1745867433269,-500.0,0.00022087,2]
[359246987,1745867433279,-150.0,0.00022087,2]
[359246988,1745867433289,-150.0,0.00022087,2]
[359246989,1745867433299,-150.0,0.00022087,2]
[359246990,1745867433309,-500.0,0.00022087,2]
[359246991,1745867433319,-500.0,0.00022087,2]
[359246992,1745867433328,-150.0,0.00022087,2]
[359246993,1745867433338,-150.0,0.00022087,2]
[359246994,1745867433349,-500.0,0.00022087,2]
[359246995,1745867433358,-277.31591749,0.00022087,2]
[359246996,1745867433368,-150.0,0.00022087,2]
[359246997,1745867433378,-200.0,0.0002209,2]
[359246998,1745867433387,-200.0,0.0002209,2]
[359246999,1745867433398,-250.0,0.0002209,2]
[359247000,1745867433408,-303.71,0.00022093,2]
[359247001,1745867433418,-301.74,0.00022093,2]
[359247002,1745867433428,-303.34,0.00022093,2]
[359247003,1745867433439,-300.65,0.00022093,2]
[359247004,1745867433450,-300.85,0.00022098,2]
[359247005,1745867433459,-302.44,0.00022098,2]
[359247006,1745867433469,-301.98,0.00022098,2]
[359247007,1745867433479,-303.4,0.00022098,2]
[359247008,1745867433489,-500.0,0.00022098,2]
[359247009,1745867433499,-500.0,0.00022098,2]
[359247010,1745867433510,-150.0,0.00022098,2]
[359247011,1745867433521,-303.74,0.00022102,2]
[359247012,1745867433531,-500.0,0.00022114,2]
[359247013,1745867433541,-500.0,0.00022114,2]
[359247014,1745867433552,-500.0,0.00022114,2]
[359247015,1745867433562,-500.0,0.00022114,2]
[359247016,1745867433571,-500.0,0.00022114,2]
[359247017,1745867433581,-500.0,0.00022114,2]
[359247018,1745867433591,-152.77412011,0.00022114,2]
[359247019,1745867433600,-166.91613767,0.00022114,2]
[359247020,1745867433610,-500.0,0.00022114,2]
[359247021,1745867433619,-500.0,0.00022114,2]
[359247022,1745867433628,-150.0,0.00022114,2]
[359247023,1745867433637,-150.0,0.00022114,2]
[359247024,1745867433647,-500.0,0.00022114,2]
[359247025,1745867433656,-150.0,0.00022114,2]
[359247026,1745867433666,-500.0,0.00022125,2]
[359247027,1745867433676,-500.0,0.00022125,2]
[359247028,1745867433686,-150.0,0.00022125,2]
[359247029,1745867433695,-500.0,0.00022142,2]
[359247030,1745867433706,-500.0,0.00022142,2]
[359247031,1745867433715,-500.0,0.00022142,2]
[359247032,1745867433725,-500.0,0.00022142,2]
[359247033,1745867433734,-500.0,0.00022142,2]
[359247034,1745867433743,-500.0,0.00022142,2]
[359247035,1745867433752,-500.0,0.00022142,2]
[359247036,1745867433762,-500.0,0.00022142,2]
[359247037,1745867433771,-150.0,0.00022142,2]
[359247038,1745867433781,-150.0,0.00022142,2]
[359247039,1745867433791,-500.0,0.00022142,2]
[359247040,1745867433801,-612.2194362,0.0002215,2]
[359247041,1745867433811,-514.81798636,0.0002215,2]
[359247042,1745867433821,-500.0,0.00022153,2]
[359247043,1745867433831,-500.0,0.00022153,2]
[359247044,1745867433841,-177.18528437,0.00022153,2]
[359247045,1745867433851,-500.0,0.00022169,2]
[359247046,1745867433860,-500.0,0.00022169,2]
[359247047,1745867433870,-300.0,0.00022169,2]
[359247048,1745867433879,-500.0,0.00022169,2]
[359247049,1745867433888,-500.0,0.00022169,2]
[359247050,1745867433898,-500.0,0.00022169,2]
[359247051,1745867433907,-500.0,0.00022169,2]
[359247052,1745867433917,-233.51134533,0.00022169,2]
[359247053,1745867433927,-242.87953403,0.00022169,2]
[359247054,1745867433937,-154.28711873,0.00022169,2]
[359247055,1745867433947,-463.27980547,0.00022169,2]
[359247056,1745867433956,-300.13,0.0002218,2]
[359247057,1745867433966,-500.0,0.0002218,2]
[359247058,1745867433977,-500.0,0.0002218,2]
[359247059,1745867433988,-500.0,0.00022197,2]
[359247060,1745867433998,-500.0,0.00022197,2]
[359247061,1745867434009,-500.0,0.00022197,2]
[359247062,1745867434020,-500.0,0.00022197,2]
[359247063,1745867434030,-500.0,0.00022197,2]
[359247064,1745867434040,-500.0,0.00022197,2]
[359247065,1745867434051,-500.0,0.00022208,2]
[359247066,1745867434062,-150.0,0.00022208,2]
[359247067,1745867434071,-500.0,0.00022224,2]
[359247068,1745867434082,-500.0,0.00022224,2]
[359247069,1745867434092,-500.0,0.00022224,2]
[359247070,1745867434102,-608.92069253,0.00022224,2]
[359247071,1745867434111,-500.0,0.00022224,2]
[359247072,1745867434121,-316.0,0.00022224,2]
[359247073,1745867434131,-500.0,0.00022235,2]
[359247074,1745867434141,-200.0,0.00022251,2]
[359247075,1745867434151,-566.20996784,0.00022251,2]
[359247076,1745867434161,-500.0,0.00022251,2]
[359247077,1745867434170,-500.0,0.00022251,2]
[359247078,1745867434180,-500.0,0.00022262,2]
[359247079,1745867434189,-500.0,0.00022279,2]
[359247080,1745867434200,-291.0,0.00022306,2]
[359247081,1745867434210,-543.25,0.00022353,2]
[359247082,1745867434220,-500.95167534,0.000224,2]
[359247083,1745867434229,-500.0,0.0002248,2]
[359247084,1745867434239,-500.0,0.0002248,2]
[359247085,1745867434248,-500.0,0.0002248,2]
[359247086,1745867434258,-500.0,0.0002248,2]
[359247087,1745867434268,-156.49,0.00022644,2]
[359247088,1745867434278,-958.53741522,0.00022728,4]
[359247089,1745867434287,-400.0,0.00023,2]
[359247090,1745867434297,-328.0,0.00023,7]
[359247091,1745867434308,-223.0315306,0.00023004,2]
[359247092,1745867434318,-200.0,0.00023037,2]
[359247093,1745867434327,-420.0,0.00023172,2]
[359247094,1745867434337,-420.0,0.00023173,2]
[359247095,1745867434347,-1680.0,0.00023283,2]
[359247096,1745867434357,-251.74,0.00023287,2]
[359247097,1745867434366,-328.0,0.00023288,7]
[359247098,1745867434376,-958.53741522,0.00023555,4]
[359247099,1745867434385,-1327.24,0.00023836,2]
[359247100,1745867434396,-1000.0,0.00023888,2]
[359247101,1745867434405,-107.54304996,0.00024164,7]
[359247169,1745867438090,-5464.28979694,0.00019962,2]
[359247171,1745867438101,-5534.73604492,0.00019962,2]
[359247197,1745867438353,-8720.54679114,0.00019962,2]
[359247199,1745867438362,-165.251549,0.00019966,2]
[359247201,1745867438372,-19719.572633,0.00019966,2]
[359247203,1745867438382,-165.251549,0.00019967,2]
[359247204,1745867438392,-19719.572633,0.00019967,2]
[359247206,1745867438403,-165.251549,0.00019996,2]
[359247207,1745867438412,-19719.572633,0.00019996,2]
[359247209,1745867438423,-165.251549,0.00019998,2]
[359247211,1745867438433,-19719.572633,0.00019998,2]
[359247213,1745867438447,-151.0,0.00021122,2]
[359247215,1745867438457,-220.45695004,0.00024164,7]
[359247217,1745867438467,-231.28369723,0.00024373,2]
[359247219,1745867438479,-958.53741522,0.00024383,5]
[359247221,1745867438490,-543.25,0.00024617,2]
[359247223,1745867438499,-251.74,0.00024657,2]
[359247224,1745867438508,-1000.0,0.00024658,2]
[359247226,1745867438518,-450.0,0.00025,2]
[359247228,1745867438528,-150.0,0.00025,2]
[359247230,1745867438538,-150.0,0.00025,2]
[359247232,1745867438549,-150.0,0.00025,2]
[359247234,1745867438559,-156.61,0.00025149,2]
[359247236,1745867438568,-587.0,0.00025198,2]
[359247238,1745867438578,-587.0,0.00025199,2]
[359247240,1745867438587,-958.53741522,0.0002521,5]
[359247242,1745867438597,-152.0,0.00025266,3]
[359247244,1745867438606,-332.0,0.00025373,7]
[359247246,1745867438615,-2351.0,0.00025438,2]
[359247248,1745867438625,-239.84119403,0.00025742,2]
[359247250,1745867438635,-152.0,0.00025922,4]
[359247252,1745867438644,-251.74,0.00026027,2]
[359247254,1745867438653,-958.53741522,0.00026038,6]
[359247256,1745867438663,-1000.0,0.00026277,2]
[359247258,1745867438672,-152.0,0.00026578,5]
[359247260,1745867438682,-703.5155099,0.000266,4]
[359247261,1745867438691,-666.34,0.00026755,2]
[359247263,1745867438700,-426.747,0.00026822,14]
[359247264,1745867438710,-958.53741522,0.00026866,7]
[359247265,1745867438719,-543.25,0.00026881,2]
[359247266,1745867438729,-150.0,0.00027,2]
[359247268,1745867438739,-500.0,0.00027,2]
[359247269,1745867438748,-328.0,0.00027064,7]
[359247270,1745867438759,-248.71531821,0.00027111,2]
[359247271,1745867438769,-152.0,0.00027234,6]
[359247272,1745867438778,-251.74,0.00027397,2]
[359247273,1745867438788,-402.52021919,0.00027397,2]
[359247274,1745867438798,-150.0,0.00027397,2]
[359247275,1745867438809,-1000.0,0.00027397,2]
[359247276,1745867438818,-521.0,0.000274,2]
[359247277,1745867438828,-415.0,0.00027401,2]
[359247278,1745867438838,-823.0,0.00027403,2]
[359247279,1745867438848,-958.53741522,0.00027693,7]
[359247280,1745867438858,-3292.0,0.00027793,2]
[359247281,1745867438867,-152.0,0.00027891,7]
[359247282,1745867438877,-257.83880991,0.000279,2]
[359247283,1745867438886,-500.0,0.00027959,5]
[359247285,1745867438895,-500.0,0.00027959,5]
[359247286,1745867438905,-204.12031234,0.00027959,2]
[359247288,1745867438916,-1000.0,0.00027959,5]
[359247290,1745867438925,-11615.6587008,0.00027992,2]
[359247291,1745867438934,-5957.08771551,0.00028,2]
[359247293,1745867438944,-509.08172314,0.00028,2]
[359247295,1745867438953,-1238.48043337,0.00028,2]
[359247297,1745867438964,-30497.5866126,0.00028011,2]
[359247299,1745867438973,-1444.5080676,0.00028011,2]
[359247301,1745867438983,-179.14341039,0.00028019,2]
[359247302,1745867438994,-173.53413842,0.00028019,2]
[359247303,1745867439003,-186.53704893,0.00028019,2]
[359247304,1745867439012,-500.0,0.00028019,2]
[359247305,1745867439022,-500.0,0.00028019,2]
[359247306,1745867439032,-247.86636675,0.00028019,2]
[359247307,1745867439042,-305.33224661,0.00028019,2]
[359247308,1745867439052,-500.0,0.00028019,2]
[359247309,1745867439062,-500.0,0.00028019,2]
[359247310,1745867439071,-500.0,0.00028019,2]
[359247311,1745867439081,-435.21972794,0.00028019,2]
[359247312,1745867439090,-500.0,0.00028019,2]
[359247313,1745867439099,-500.0,0.00028019,2]
[359247314,1745867439107,-500.0,0.00028019,2]
[359247315,1745867439311,-500.0,0.00028019,2]
[359247316,1745867439322,-201.42,0.00028099,7]
[359247317,1745867439332,-214.82,0.00028099,14]
[359247318,1745867439345,-210.58,0.00028099,14]
[359247319,1745867439355,-224.58,0.00028099,7]
[359247320,1745867439365,-160.0,0.00028105,14]
[359247321,1745867439375,-150.0,0.00028118,2]
[359247322,1745867439385,-257.91778498,0.0002848,2]
[359247323,1745867439395,-958.53741522,0.00028521,8]
[359247324,1745867439404,-152.0,0.00028547,8]
[359247325,1745867439414,-156.49,0.00028666,2]
[359247326,1745867439424,-1000.0,0.00028666,2]
[359247327,1745867439434,-912.01,0.00028754,2]
[359247328,1745867439448,-328.0,0.00028756,14]
[359247329,1745867439457,-348.0,0.00028767,5]
[359247330,1745867439467,-251.74,0.00028767,2]
[359247331,1745867439480,-8775.44,0.00028767,2]
[359247332,1745867439491,-150.0,0.00028839,2]
[359247333,1745867439501,-500.0,0.00028973,5]
[359247334,1745867439511,-37890.3525875,0.0002899,2]
[359247335,1745867439523,-328.0,0.00028997,14]
[359247336,1745867439532,-151.31020938,0.00029,2]
[359247337,1745867439542,-75069.92122434,0.00029,2]
[359247338,1745867439551,-54875.07512326,0.00029,2]
[359247339,1745867439561,-260.16609254,0.00029,2]
[359247340,1745867439570,-348.0,0.00029,2]
[359247341,1745867439579,-386.62305117,0.00029,6]
[359247342,1745867439589,-550.0,0.00029,2]
[359247343,1745867439598,-257.83880987,0.00029112,2]
[359247344,1745867439608,-543.25,0.00029145,2]
[359247345,1745867439619,-152.0,0.00029203,9]
[359247346,1745867439629,-958.53741522,0.00029348,8]
[359247347,1745867439638,-1000.0,0.0002948,2]
[359247348,1745867439648,-150.0,0.0002956,2]
[359247349,1745867439658,-150.0,0.00029577,2]
[359247350,1745867439671,-2331.32,0.00029577,2]
[359247351,1745867439681,-161.95,0.00029577,2]
[359247352,1745867439692,-150.0,0.00029577,2]
[359247353,1745867439702,-150.0,0.00029577,2]
[359247354,1745867439712,-150.0,0.00029577,2]
[359247355,1745867439723,-150.0,0.00029577,2]
[359247356,1745867439732,-351.59,0.00029577,2]
[359247357,1745867439741,-150.0,0.00029577,2]
[359247358,1745867439751,-150.0,0.00029577,2]
[359247359,1745867439760,-351.59,0.00029577,2]
[359247360,1745867439770,-150.0,0.00029577,2]
[359247361,1745867439779,-351.59,0.00029577,2]
[359247362,1745867439788,-351.59,0.00029577,2]
[359247363,1745867439798,-500.0,0.00029758,2]
[359247364,1745867439810,-1152.0,0.00029798,2]
[359247365,1745867439820,-211.98812336,0.0002981,2]
[359247367,1745867439830,-523.0,0.00029814,12]
[359247368,1745867439840,-523.0,0.00029841,12]
[359247369,1745867439850,-267.46074303,0.00029849,2]
[359247370,1745867439860,-152.0,0.00029859,10]
[359247371,1745867439870,-523.0,0.00029869,12]
[359247372,1745867439880,-500.0,0.00029873,5]
[359247373,1745867439890,-500.0,0.00029873,2]
[359247374,1745867439899,-37890.3525875,0.00029889,2]
[359247375,1745867439909,-523.0,0.00029896,12]
[359247376,1745867439921,-3055.15539292,0.00029898,3]
[359247377,1745867439931,-75790.41887977,0.000299,2]
[359247379,1745867439940,-13676.90722402,0.0002991,2]
[359247380,1745867439950,-523.0,0.00029924,12]
[359247381,1745867439960,-523.0,0.00029951,12]
[359247382,1745867439969,-523.0,0.00029978,12]
[359247383,1745867439978,-229.10280282,0.0002999,2]
[359247384,1745867439987,-37890.3525875,0.0002999,2]
[359247385,1745867439997,-1000.0,0.0003,3]
[359247386,1745867440006,-11512.03445949,0.0003,4]
[359247387,1745867440016,-1236.55343287,0.0003,10]
[359247388,1745867440026,-408.4374758,0.0003,2]
[359247389,1745867440035,-1752.23001494,0.0003,2]
[359247391,1745867440045,-194.2,0.0003,2]
[359247392,1745867440055,-160.77301432,0.0003,2]
[359247393,1745867440066,-5841.55955928,0.0003,10]
[359247394,1745867440076,-874.42112621,0.0003,2]
[359247395,1745867440086,-1467.19512223,0.0003,2]
[359247396,1745867440096,-7320.39788907,0.0003,2]
[359247397,1745867440105,-1246.33051917,0.0003,2]
[359247398,1745867440115,-4039.0,0.0003,14]
[359247399,1745867440125,-499.0,0.0003,7]
[359247400,1745867440135,-500.0,0.0003,10]
[359247401,1745867440145,-304.317519,0.0003,2]
[359247402,1745867440156,-200.0,0.0003,2]
[359247403,1745867440166,-213.0,0.0003,2]
[359247404,1745867440176,-523.0,0.00030006,12]
[359247405,1745867440186,-523.0,0.00030033,12]
[359247406,1745867440195,-523.0,0.00030061,12]
[359247407,1745867440205,-523.0,0.00030088,12]
[359247408,1745867440215,-37890.3525875,0.00030091,2]
[359247409,1745867440225,-28494.6055629,0.000301,2]
[359247410,1745867440234,-12046.49,0.0003011,2]
[359247411,1745867440244,-523.0,0.00030115,12]
[359247412,1745867440254,-37890.3525875,0.00030117,2]
[359247413,1745867440263,-28494.6055629,0.0003012,2]
[359247414,1745867440274,-49889.58737875,0.0003013,2]
[359247415,1745867440283,-251.74,0.00030136,2]
[359247416,1745867440293,-8775.44,0.00030137,2]
[359247417,1745867440303,-610.0,0.00030137,2]
[359247418,1745867440314,-523.0,0.00030143,12]
[359247419,1745867440324,-523.0,0.0003017,12]
[359247420,1745867440334,-514.7327358,0.00030173,5]
[359247421,1745867440345,-500.0,0.00030173,5]
[359247422,1745867440355,-958.53741522,0.00030176,9]
[359247423,1745867440365,-523.0,0.00030198,12]
[359247424,1745867440375,-523.0,0.00030225,12]
[359247425,1745867440384,-523.0,0.00030252,12]
[359247426,1745867440394,-523.0,0.0003028,12]
[359247427,1745867440404,-150.0,0.00030281,2]
[359247428,1745867440414,-541.64431861,0.00030293,2]
[359247429,1745867440424,-523.0,0.00030307,12]
[359247430,1745867440434,-257.83880987,0.00030323,2]
[359247431,1745867440448,-523.0,0.00030335,12]
[359247432,1745867440457,-37890.3525875,0.00030352,2]
[359247433,1745867440467,-523.0,0.00030362,12]
[359247434,1745867440478,-4609.0,0.00030366,2]
[359247435,1745867440487,-523.0,0.00030389,12]
[359247436,1745867440497,-523.0,0.00030417,12]
[359247437,1745867440507,-534.13801062,0.00030444,12]
[359247438,1745867440517,-328.0,0.00030447,14]
[359247439,1745867440527,-501.0,0.000305,7]
[359247440,1745867440537,-152.0,0.00030515,11]
[359247441,1745867440546,-328.68831482,0.00031,5]
[359247442,1745867440555,-600.0,0.00031,2]
[359247443,1745867440566,-150.0,0.00031002,2]
[359247444,1745867440576,-958.53741522,0.00031003,9]
[359247445,1745867440585,-150.0,0.00031111,2]
[359247446,1745867440595,-152.0,0.00031171,12]
[359247447,1745867440604,-28494.6055629,0.00031198,2]